fUSD/lending_fUSD_20260329
["ID","MTS","AMOUNT","RATE_DAILY","PERIOD"]
[419053149,1774813845830,-500.0,0.00013699,2]
[419053150,1774813845840,-500.0,0.00013699,2]
[419053151,1774813845849,-500.0,0.00013699,2]
[419053152,1774813845859,-227.36412512,0.00013699,2]
[419053153,1774813845868,-500.0,0.00013699,2]
[419053154,1774813845879,-500.0,0.00013699,2]
[419053155,1774813845888,-500.0,0.00013699,2]
[419053156,1774813845898,-500.0,0.00013699,2]
[419053157,1774813845908,-500.0,0.00013699,2]
[419053158,1774813845918,-286.26486585,0.00013699,2]
[419053159,1774813845928,-403.83679365,0.00013699,2]
[419053160,1774813845937,-500.0,0.00013699,2]
[419053161,1774813845947,-500.0,0.00013699,2]
[419053162,1774813845956,-500.0,0.00013699,2]
[419053163,1774813845965,-500.0,0.00013699,2]
[419053164,1774813845974,-500.0,0.00013699,2]
[419053165,1774813845984,-500.0,0.00013699,2]
[419053166,1774813845993,-500.0,0.00013699,2]
[419053167,1774813846002,-500.0,0.00013699,2]
[419053168,1774813846012,-500.98440072,0.00013699,2]
[419053169,1774813846022,-500.0,0.00013699,2]
[419053170,1774813846031,-500.0,0.00013699,2]
[419053171,1774813846041,-500.0,0.00013699,2]
[419053172,1774813846050,-500.0,0.00013699,2]
[419053173,1774813846060,-500.0,0.00013699,2]
[419053174,1774813846069,-500.0,0.00013699,2]
[419053175,1774813846079,-500.0,0.00013699,2]
[419053176,1774813846089,-500.0,0.00013699,2]
[419053177,1774813846100,-500.0,0.00013699,2]
[419053178,1774813846110,-415.88455514,0.00013699,2]
[419053179,1774813846120,-500.0,0.00013699,2]
[419053180,1774813846131,-517.55,0.00013699,2]
[419053181,1774813846141,-500.0,0.00013699,2]
[419053182,1774813846152,-573.16,0.00013699,2]
[419053183,1774813846162,-835.43,0.00013699,2]
[419053184,1774813846171,-150.0,0.000137,2]
[419053185,1774813846181,-1602.93,0.000137,2]
[419053186,1774813846190,-217.8882415,0.000137,2]
[419053187,1774813846200,-3286.49,0.000137,2]
[419053188,1774813846210,-20864.51,0.000137,2]
[419053189,1774813846222,-5055.34,0.000137,2]
[419053190,1774813846233,-4762.68,0.000137,2]
[419053192,1774813846243,-4859.25,0.000137,2]
[419053194,1774813846252,-342.71585944,0.00013726,2]
[419053195,1774813846262,-500.0,0.00013726,2]
[419053196,1774813846272,-500.0,0.00013726,2]
[419053197,1774813846282,-500.0,0.00013726,2]
[419053198,1774813846292,-500.0,0.00013726,2]
[419053199,1774813846301,-188.97131412,0.00013726,2]
[419053200,1774813846311,-500.0,0.00013726,2]
[419053201,1774813846320,-1000.0,0.00013737,2]
[419053202,1774813846329,-154.52171326,0.00013745,2]
[419053203,1774813846339,-1000.0,0.00013762,2]
[419053204,1774813846348,-784.86,0.00013766,2]
[419053205,1774813846358,-880.69,0.00013766,2]
[419053206,1774813846367,-200.0,0.00013836,2]
[419053207,1774813846377,-1788.38122651,0.00013836,2]
[419053208,1774813846386,-1000.0,0.00013838,2]
[419053209,1774813846396,-1000.0,0.00013858,2]
[419053210,1774813846406,-1000.0,0.00013874,2]
[419053211,1774813846418,-27906.65487176,0.000139,2]
[419053212,1774813846428,-150.0,0.00013973,2]
[419053213,1774813846438,-1000.0,0.00013976,2]
[419053214,1774813846447,-1907.3711274,0.0001398,2]
[419053215,1774813846457,-553741.4418677,0.00013983,2]
[419053216,1774813846466,-200.0,0.00014,2]
[419053217,1774813846476,-2585.8,0.00014006,30]
[419053218,1774813846486,-1000.0,0.00014013,7]
[419053219,1774813846496,-784.86,0.0001404,2]
[419053220,1774813846505,-880.69,0.0001404,2]
[419053221,1774813846515,-60000.0,0.00014115,2]
[419053222,1774813846525,-9606.5105148,0.00014133,2]
[419053223,1774813846540,-1000.0,0.00014212,2]
[419053224,1774813846550,-1000.0,0.00014218,2]
[419053225,1774813846560,-4609.0,0.00014221,2]
[419053226,1774813846570,-1252.0,0.00014223,2]
[419053227,1774813846580,-160.0,0.00014238,2]
[419053228,1774813846591,-959.8630956,0.00014238,2]
[419053229,1774813846602,-160.0,0.00014238,2]
[419053230,1774813846613,-1000.0,0.00014247,2]
[419053231,1774813846624,-1000.0,0.00014247,2]
[419053232,1774813846634,-1000.0,0.00014247,2]
[419053233,1774813846645,-1000.0,0.00014247,2]
[419053234,1774813846656,-1000.0,0.00014247,2]
[419053235,1774813846667,-1000.0,0.00014247,2]
[419053236,1774813846676,-502.79991996,0.00014247,2]
[419053237,1774813846687,-724.83675979,0.00014247,2]
[419053238,1774813846696,-1000.0,0.00014247,2]
[419053239,1774813846708,-1000.0,0.00014247,2]
[419053240,1774813846719,-550.17209312,0.00014247,2]
[419053241,1774813846729,-395.74377257,0.00014247,2]
[419053242,1774813846741,-1000.0,0.00014247,2]
[419053243,1774813846751,-640.4578624,0.00014247,2]
[419053244,1774813846762,-1000.0,0.00014247,2]
[419053245,1774813846771,-1000.0,0.00014247,2]
[419053246,1774813846781,-1000.0,0.00014247,2]
[419053247,1774813846792,-1000.0,0.00014247,2]
[419053248,1774813846802,-1000.0,0.00014247,2]
[419053249,1774813846812,-1000.0,0.00014247,2]
[419053250,1774813846822,-1000.0,0.00014247,2]
[419053251,1774813846832,-1000.0,0.00014247,2]
[419053252,1774813846842,-1000.0,0.00014247,2]
[419053253,1774813846851,-500.38478146,0.00014274,2]
[419053254,1774813846861,-500.0,0.00014274,2]
[419053255,1774813846872,-1000.0,0.00014274,2]
[419053257,1774813846882,-1000.0,0.00014274,2]
[419053260,1774813846892,-910.58294734,0.00014274,2]
[419053261,1774813846903,-1000.0,0.00014278,2]
[419053262,1774813846913,-1000.0,0.00014287,2]
[419053263,1774813846923,-784.86,0.00014314,2]
[419053264,1774813846933,-880.69,0.00014314,2]
[419053265,1774813846943,-485.50150054,0.00014315,2]
[419053266,1774813846953,-1000.0,0.00014359,2]
[419053267,1774813846963,-200.0,0.00014384,2]
[419053268,1774813846973,-1419.88335257,0.00014384,2]
[419053269,1774813846983,-600.0,0.00014451,2]
[419053270,1774813846993,-1000.0,0.00014458,2]
[419053271,1774813847004,-1000.0,0.00014459,2]
[419053272,1774813847014,-1000.0,0.00014529,2]
[419053273,1774813847025,-1000.0,0.0001457,2]
[419053274,1774813847035,-784.86,0.00014588,2]
[419053275,1774813847044,-945.38,0.00014588,2]
[419053276,1774813847054,-1000.0,0.00014598,2]
[419053277,1774813847064,-3016.77,0.00014661,30]
[419053278,1774813847074,-500.0,0.00014685,2]
[419053279,1774813847085,-189.38,0.00014688,2]
[419053281,1774813847094,-1600.0,0.00014718,2]
[419053283,1774813847103,-1000.0,0.00014728,2]
[419053285,1774813847113,-1500.0,0.00014795,2]
[419053287,1774813847123,-1500.0,0.00014795,2]
[419053289,1774813847133,-1500.0,0.00014795,2]
[419053291,1774813847143,-1500.0,0.00014795,2]
[419053292,1774813847153,-1500.0,0.00014795,2]
[419053293,1774813847163,-1500.0,0.00014795,2]
[419053294,1774813847174,-911.77279152,0.00014795,2]
[419053295,1774813847183,-1500.0,0.00014795,2]
[419053296,1774813847193,-1402.73289396,0.00014795,2]
[419053297,1774813847204,-1500.0,0.00014795,2]
[419053298,1774813847213,-504.36577376,0.00014795,2]
[419053299,1774813847223,-685.01158904,0.00014795,2]
[419053300,1774813847233,-502.98896701,0.00014795,2]
[419053301,1774813847243,-500.0,0.00014795,2]
[419053302,1774813847253,-1500.0,0.00014795,2]
[419053303,1774813847263,-1000.0,0.00014795,2]
[419053304,1774813847272,-1500.0,0.00014795,2]
[419053305,1774813847283,-1000.0,0.00014821,2]
[419053306,1774813847292,-1507.9229115,0.00014822,2]
[419053307,1774813847302,-1500.0,0.00014822,2]
[419053308,1774813847313,-1000.0,0.00014829,2]
[419053309,1774813847324,-784.86,0.00014862,2]
[419053310,1774813847334,-339.1188,0.000149,2]
[419053311,1774813847343,-544.45729765,0.000149,2]
[419053312,1774813847353,-503.0,0.00014932,2]
[419053313,1774813847363,-200.0,0.00014932,2]
[419053314,1774813847373,-1000.0,0.00014948,2]
[419053315,1774813847384,-30000.0,0.00014983,2]
[419053316,1774813847393,-300.0,0.00015,2]
[419053317,1774813847403,-161.4,0.00015,2]
[419053318,1774813847413,-502.0,0.00015,2]
[419053319,1774813847422,-9606.5105148,0.00015016,2]
[419053320,1774813847431,-268.4752413,0.00015024,2]
[419053321,1774813847441,-1000.0,0.00015051,2]
[419053322,1774813847451,-1000.0,0.0001506,2]
[419053323,1774813847461,-900.0,0.00015068,2]
[419053324,1774813847470,-1000.0,0.00015094,2]
[419053325,1774813847480,-150.0,0.000151,2]
[419053326,1774813847490,-150.0,0.00015131,2]
[419053327,1774813847499,-888.83,0.00015136,2]
[419053328,1774813847509,-4859.25,0.000152,2]
[419053329,1774813847520,-2925.15918205,0.000152,2]
[419053330,1774813847530,-2000.0,0.000152,2]
[419053331,1774813847541,-10000.0,0.00015205,2]
[419053332,1774813847551,-187.77689859,0.00015223,2]
[419053333,1774813847561,-294.28027492,0.000153,2]
[419053334,1774813847572,-1602.93,0.000153,2]
[419053335,1774813847583,-3286.49,0.000153,2]
[419053336,1774813847593,-20864.51,0.000153,2]
[419053337,1774813847604,-5055.34,0.000153,2]
[419053338,1774813847614,-4762.68,0.000153,2]
[419053339,1774813847623,-1000.0,0.00015303,2]
[419053340,1774813847634,-3447.73,0.00015316,30]
[419053341,1774813847644,-578.20924308,0.00015323,2]
[419053342,1774813847654,-151.0,0.00015323,2]
[419053343,1774813847665,-1428.38747117,0.00015323,2]
[419053344,1774813847674,-717.60346743,0.00015323,2]
[419053345,1774813847685,-500.0,0.00015323,2]
[419053346,1774813847696,-209.40437684,0.00015323,2]
[419053347,1774813847706,-500.0,0.00015323,2]
[419053348,1774813847716,-500.0,0.00015323,2]
[419053349,1774813847725,-500.0,0.00015323,2]
[419053350,1774813847735,-500.0,0.00015323,2]
[419053351,1774813847745,-500.0,0.00015323,2]
[419053352,1774813847756,-500.0,0.00015323,2]
[419053353,1774813847765,-151.0,0.00015323,2]
[419053354,1774813847776,-500.0,0.00015323,2]
[419053355,1774813847786,-151.0,0.00015323,2]
[419053356,1774813847796,-500.0,0.00015323,2]
[419053357,1774813847806,-151.0,0.00015323,2]
[419053358,1774813847816,-500.0,0.00015323,2]
[419053359,1774813847827,-151.0,0.00015323,2]
[419053360,1774813847838,-500.0,0.00015323,2]
[419053361,1774813847847,-292.30151101,0.00015323,2]
[419053362,1774813847857,-500.0,0.00015323,2]
[419053363,1774813847867,-9552.16786547,0.00015323,2]
[419053364,1774813847878,-209.40437684,0.00015323,2]
[419053365,1774813848048,-500.0,0.00015323,2]
[419053366,1774813848058,-500.0,0.00015323,2]
[419053367,1774813848067,-500.0,0.00015323,2]
[419053368,1774813848077,-500.0,0.00015323,2]
[419053369,1774813848087,-500.0,0.00015323,2]
[419053370,1774813848096,-500.0,0.00015323,2]
[419053371,1774813848105,-174.61919141,0.00015323,2]
[419053372,1774813848115,-500.0,0.00015323,2]
[419053373,1774813848124,-500.0,0.00015323,2]
[419053374,1774813848134,-500.0,0.00015323,2]
[419053375,1774813848143,-500.0,0.00015323,2]
[419053376,1774813848152,-500.0,0.00015323,2]
[419053377,1774813848162,-500.0,0.00015323,2]
[419053378,1774813848171,-500.0,0.00015323,2]
[419053379,1774813848180,-500.0,0.00015323,2]
[419053380,1774813848190,-151.0,0.00015323,2]
[419053381,1774813848199,-500.0,0.00015323,2]
[419053382,1774813848209,-200.0,0.00015323,2]
[419053383,1774813848218,-693.3919763,0.00015323,2]
[419053384,1774813848227,-500.0,0.00015323,2]
[419053385,1774813848237,-500.0,0.00015323,2]
[419053386,1774813848246,-500.0,0.00015323,2]
[419053387,1774813848256,-500.0,0.00015323,2]
[419053388,1774813848265,-500.0,0.00015323,2]
[419053389,1774813848275,-500.0,0.00015323,2]
[419053390,1774813848286,-500.0,0.00015323,2]
[419053391,1774813848296,-151.0,0.00015323,2]
[419053392,1774813848306,-194.63986655,0.00015323,2]
[419053393,1774813848316,-209.40437684,0.00015323,2]
[419053394,1774813848327,-262.90206542,0.00015323,2]
[419053395,1774813848336,-250.0,0.00015323,2]
[419053396,1774813848345,-250.0,0.00015323,2]
[419053397,1774813848355,-250.0,0.00015323,2]
[419053398,1774813848365,-250.0,0.00015323,2]
[419053399,1774813848375,-279.9045709,0.00015323,2]
[419053400,1774813848384,-250.0,0.00015323,2]
[419053401,1774813848393,-250.0,0.00015323,2]
[419053402,1774813848403,-209.40437684,0.00015323,2]
[419053403,1774813848412,-250.0,0.00015323,2]
[419053404,1774813848421,-250.0,0.00015323,2]
[419053405,1774813848431,-250.0,0.00015323,2]
[419053406,1774813848440,-250.0,0.00015323,2]
[419053407,1774813848449,-250.0,0.00015323,2]
[419053408,1774813848458,-743.50770149,0.00015323,2]
[419053409,1774813848467,-500.0,0.00015323,2]
[419053410,1774813848476,-500.0,0.00015323,2]
[419053411,1774813848486,-500.0,0.00015323,2]
[419053412,1774813848495,-500.0,0.00015323,2]
[419053413,1774813848504,-500.0,0.00015323,2]
[419053414,1774813848513,-192.492138,0.00015325,2]
[419053415,1774813848522,-2000.0,0.00015342,2]
[419053416,1774813848531,-2000.0,0.00015342,2]
[419053417,1774813848540,-395.15417605,0.00015342,2]
[419053418,1774813848548,-2000.0,0.00015342,2]
[419053419,1774813848558,-471.18842002,0.00015342,2]
[419053420,1774813848567,-2083.85118063,0.00015342,2]
[419053421,1774813848576,-332.25501618,0.00015342,2]
[419053422,1774813848586,-2000.0,0.00015342,2]
[419053423,1774813848595,-2000.0,0.00015342,2]
[419053424,1774813848604,-2000.0,0.00015342,2]
[419053425,1774813848613,-406.725516,0.00015361,2]
[419053426,1774813848623,-2000.0,0.0001537,2]
[419053427,1774813848632,-500.0,0.00015378,2]
[419053428,1774813848641,-9905.5980765,0.00015378,2]
[419053429,1774813848650,-151.0,0.00015378,2]
[419053430,1774813848659,-272.62944185,0.00015378,2]
[419053431,1774813848668,-417.75,0.00015393,2]
[419053432,1774813848677,-445.25,0.00015393,2]
[419053433,1774813848686,-500.0,0.00015433,2]
[419053434,1774813848695,-10272.10520533,0.00015433,2]
[419053435,1774813848704,-151.0,0.00015433,2]
[419053436,1774813848713,-282.71673119,0.00015433,2]
[419053437,1774813848723,-150.0,0.00015456,2]
[419053438,1774813848732,-1000.0,0.00015475,2]
[419053439,1774813848742,-151.0,0.00015478,2]
[419053440,1774813848751,-200.0,0.0001548,2]
[419053441,1774813848760,-500.0,0.00015488,2]
[419053442,1774813848769,-10652.17309792,0.00015488,2]
[419053443,1774813848778,-151.0,0.00015488,2]
[419053444,1774813848787,-293.17725025,0.00015488,2]
[419053445,1774813848796,-150.0,0.0001551,2]
[419053446,1774813848806,-1000.0,0.0001553,2]
[419053447,1774813848815,-500.0,0.00015543,2]
[419053448,1774813848827,-11046.30350255,0.00015543,2]
[419053449,1774813848836,-151.0,0.00015543,2]
[419053450,1774813848845,-304.02480851,0.00015543,2]
[419053451,1774813848854,-2000.0,0.00015551,2]
[419053452,1774813848863,-2000.0,0.00015551,2]
[419053453,1774813848872,-2000.0,0.00015551,2]
[419053454,1774813848883,-2000.0,0.00015551,2]
[419053455,1774813848892,-2000.0,0.00015551,2]
[419053456,1774813848901,-2000.0,0.00015551,2]
[419053457,1774813848911,-2000.0,0.00015551,2]
[419053458,1774813848920,-2000.0,0.00015551,2]
[419053459,1774813848929,-2000.0,0.00015551,2]
[419053460,1774813848939,-1000.0,0.00015576,2]
[419053461,1774813848947,-500.0,0.00015598,2]
[419053462,1774813848958,-11455.01673214,0.00015598,2]
[419053463,1774813848967,-151.0,0.00015598,2]
[419053464,1774813848977,-315.27372642,0.00015598,2]
[419053465,1774813848986,-1000.0,0.00015627,2]
[419053466,1774813848995,-166.55350379,0.00015627,2]
[419053467,1774813849005,-2000.0,0.00015634,2]
[419053468,1774813849015,-2000.0,0.00015634,2]
[419053469,1774813849024,-2000.0,0.00015634,2]
[419053470,1774813849034,-2000.0,0.00015634,2]
[419053471,1774813849043,-2000.0,0.00015634,2]
[419053472,1774813849052,-2000.0,0.00015634,2]
[419053473,1774813849062,-2000.0,0.00015634,2]
[419053474,1774813849071,-2000.0,0.00015634,2]
[419053475,1774813849080,-2000.0,0.00015634,2]
[419053476,1774813849090,-2000.0,0.00015634,2]
[419053477,1774813849099,-1096.24809732,0.00015636,2]
[419053478,1774813849108,-150.0,0.00015638,2]
[419053479,1774813849118,-1000.0,0.00015642,2]
[419053480,1774813849127,-6453.0,0.00015643,2]
[419053481,1774813849136,-2129.0,0.00015652,2]
[419053482,1774813849146,-500.0,0.00015653,2]
[419053483,1774813849155,-11878.85235123,0.00015653,2]
[419053484,1774813849164,-151.0,0.00015653,2]
[419053485,1774813849173,-326.9388543,0.00015653,2]
[419053486,1774813849182,-2000.0,0.00015659,2]
[419053487,1774813849191,-2000.0,0.00015659,2]
[419053488,1774813849201,-2000.0,0.00015659,2]
[419053489,1774813849210,-2000.0,0.00015659,2]
[419053490,1774813849219,-2000.0,0.00015659,2]
[419053491,1774813849228,-2000.0,0.00015659,2]
[419053492,1774813849237,-2000.0,0.00015659,2]
[419053493,1774813849246,-2000.0,0.00015659,2]
[419053494,1774813849255,-2000.0,0.00015659,2]
[419053495,1774813849264,-2000.0,0.00015659,2]
[419053496,1774813849274,-1000.0,0.00015674,2]
[419053497,1774813849283,-1000.0,0.00015694,2]
[419053498,1774813849292,-1500.0,0.000157,5]
[419053499,1774813849302,-500.0,0.00015708,2]
[419053500,1774813849311,-12318.36988823,0.00015708,2]
[419053501,1774813849321,-151.0,0.00015708,2]
[419053502,1774813849330,-339.03559191,0.00015708,2]
[419053503,1774813849339,-1000.0,0.00015713,2]
[419053504,1774813849348,-1000.0,0.00015725,2]
[419053505,1774813849357,-1000.0,0.00015733,2]
[419053506,1774813849366,-1000.0,0.00015735,2]
[419053507,1774813849376,-500.0,0.00015736,2]
[419053508,1774813849385,-1000.0,0.00015745,2]
[419053509,1774813849396,-1000.0,0.00015751,2]
[419053510,1774813849404,-1000.0,0.00015753,2]
[419053511,1774813849416,-1000.0,0.00015756,2]
[419053512,1774813849426,-500.0,0.00015763,2]
[419053513,1774813849435,-12774.14957409,0.00015763,2]
[419053514,1774813849444,-151.0,0.00015763,2]
[419053515,1774813849455,-1000.0,0.00015766,2]
[419053516,1774813849464,-1000.0,0.00015771,2]
[419053517,1774813849472,-1000.0,0.00015771,2]
[419053518,1774813849481,-1000.0,0.00015772,2]
[419053519,1774813849491,-401.78,0.00015782,2]
[419053520,1774813849500,-1000.0,0.00015786,2]
[419053521,1774813849510,-1000.0,0.00015787,2]
[419053522,1774813849519,-1000.0,0.00015791,2]
[419053523,1774813849530,-1000.0,0.00015795,2]
[419053524,1774813849539,-1500.0,0.000158,5]
[419053525,1774813849548,-2000.0,0.000158,2]
[419053526,1774813849557,-1000.0,0.00015808,2]
[419053527,1774813849567,-1000.0,0.0001581,2]
[419053528,1774813849578,-1000.0,0.0001581,2]
[419053529,1774813849588,-401.78,0.0001581,2]
[419053530,1774813849597,-1000.0,0.00015812,2]
[419053531,1774813849606,-500.0,0.00015818,2]
[419053532,1774813849615,-13246.79310833,0.00015818,2]
[419053533,1774813849624,-151.0,0.00015818,2]
[419053534,1774813849634,-1000.0,0.00015821,2]
[419053535,1774813849643,-1000.0,0.00015828,2]
[419053536,1774813849652,-401.78,0.00015839,2]
[419053537,1774813849661,-67726.49863211,0.0001584,2]
[419053538,1774813849671,-1000.0,0.00015841,2]
[419053539,1774813849680,-1000.0,0.00015852,2]
[419053540,1774813849689,-1000.0,0.00015864,2]
[419053541,1774813849700,-1000.0,0.00015867,2]
[419053542,1774813849710,-179.951098,0.00015868,2]
[419053543,1774813849719,-1000.0,0.00015868,2]
[419053544,1774813849728,-1481.23780761,0.00015871,2]
[419053545,1774813849738,-151.0,0.00015871,2]
[419053546,1774813849748,-217.15233878,0.00015871,2]
[419053547,1774813849757,-217.15233878,0.00015871,2]
[419053548,1774813849766,-181.08010149,0.00015871,2]
[419053549,1774813849775,-200.0,0.00015871,2]
[419053550,1774813849784,-719.04747942,0.00015871,2]
[419053551,1774813849793,-217.15233878,0.00015871,2]
[419053552,1774813849803,-290.26104003,0.00015871,2]
[419053553,1774813849812,-771.01748645,0.00015871,2]
[419053554,1774813849821,-1000.0,0.00015871,2]
[419053555,1774813849830,-200.0,0.00015872,2]
[419053556,1774813849839,-500.0,0.00015873,2]
[419053557,1774813849848,-6003.86625702,0.00015873,2]
[419053558,1774813849858,-151.0,0.00015873,2]
[419053559,1774813849867,-1000.0,0.00015874,2]
[419053560,1774813849876,-1000.0,0.00015887,2]
[419053561,1774813849885,-1000.0,0.0001589,2]
[419053562,1774813849894,-757.40227596,0.0001589,2]
[419053563,1774813849905,-2500.0,0.0001589,2]
[419053564,1774813849914,-781.0056123,0.0001589,2]
[419053565,1774813849924,-2500.0,0.0001589,2]
[419053566,1774813849933,-225.66563804,0.0001589,2]
[419053567,1774813849942,-1000.0,0.00015898,2]
[419053568,1774813849951,-150.0,0.000159,2]
[419053569,1774813849960,-150.0,0.000159,2]
[419053570,1774813849969,-150.0,0.000159,2]
[419053571,1774813849978,-150.0,0.000159,2]
[419053572,1774813849987,-1000.0,0.000159,2]
[419053573,1774813849996,-150.0,0.000159,2]
[419053574,1774813850006,-150.0,0.000159,2]
[419053575,1774813850015,-1500.0,0.000159,5]
[419053576,1774813850024,-9606.5105148,0.000159,2]
[419053577,1774813850033,-150.0,0.000159,2]
[419053578,1774813850043,-224.32485354,0.000159,2]
[419053579,1774813850053,-3795.23329005,0.000159,2]
[419053580,1774813850062,-150.0,0.000159,2]
[419053581,1774813850071,-393.00963669,0.00015901,2]
[419053582,1774813850081,-1000.0,0.00015905,2]
[419053583,1774813850091,-1000.0,0.00015905,2]
[419053584,1774813850100,-1552.52786772,0.00015918,2]
[419053585,1774813850109,-475.92350952,0.00015919,2]
[419053586,1774813850119,-1000.0,0.00015923,2]
[419053587,1774813850129,-1000.0,0.00015931,2]
[419053588,1774813850139,-1000.0,0.00015956,2]
[419053589,1774813850148,-3835.20744626,0.0001596,2]
[419053590,1774813850157,-1000.0,0.00015961,2]
[419053591,1774813850166,-1000.0,0.00015964,2]
[419053592,1774813850175,-1000.0,0.00015966,2]
[419053593,1774813850184,-1000.0,0.00015968,2]
[419053594,1774813850193,-3878.7,0.00015971,30]
[419053595,1774813850202,-20757.0369438,0.00015972,2]
[419053596,1774813850211,-1907.3711273,0.00015972,2]
[419053597,1774813850220,-500.0,0.00015973,2]
[419053598,1774813850229,-1000.0,0.00015978,2]
[419053599,1774813850239,-1000.0,0.0001598,2]
[419053600,1774813850248,-191.34143382,0.00015982,2]
[419053601,1774813850260,-344.0701663,0.00015982,2]
[419053602,1774813850269,-1000.0,0.00015985,2]
[419053603,1774813850279,-1000.0,0.00015987,2]
[419053604,1774813850289,-1000.0,0.0001599,2]
[419053605,1774813850300,-162.7506152,0.00015991,2]
[419053606,1774813850309,-191.11217803,0.00015994,2]
[419053607,1774813850320,-212.850755,0.00015997,2]
[419053608,1774813850330,-151.0,0.00015997,2]
[419053609,1774813850342,-1002.75935616,0.00015999,2]
[419053610,1774813850351,-666.0,0.00015999,2]
[419053611,1774813850361,-684.0040152,0.00015999,2]
[419053612,1774813850371,-666.0,0.00015999,2]
[419053613,1774813850380,-666.0,0.00015999,2]
[419053614,1774813850389,-150.0,0.00016,2]
[419053615,1774813850399,-1861407.93388699,0.00016,2]
[419053616,1774813851949,-2198968.89305201,0.00016,2]
[419053617,1774813851959,-5754450.96829925,0.00016,2]
[419053618,1774813851991,-108582.76031694,0.00016,2]
[419053619,1774813852003,-50409.61685451,0.00016,2]
[419053620,1774813852127,-3906.25199542,0.00016,2]
[419053621,1774813852139,-348.885,0.00016,2]
[419053622,1774813852152,-1075.15,0.00016,2]
[419053623,1774813852329,-681.76212011,0.00016,2]
[419053624,1774813852341,-1367.20113816,0.00016,2]
[419053625,1774813852409,-214.42162725,0.00016,2]
[419053626,1774813853237,-4997.511659,0.00016,2]
[419053627,1774813980156,800.0,9.243e-05,2]
[419053628,1774814057303,430.97,0.00010364,30]
[419053629,1774814125391,351.74399089,9.578e-05,30]
[419053631,1774814234682,425.48,0.00010369,30]
[419053632,1774814263339,1830.21,8.844e-05,2]
[419053633,1774814369323,420.07,0.00010365,30]
[419053634,1774814439322,2000.0,8.893e-05,2]
[419053635,1774814482693,220.97,8.838e-05,2]
[419053636,1774814482894,220.97,9.329e-05,2]
[419053637,1774814587910,-300.0,9.513e-05,2]
[419053638,1774814587932,-300.0,9.513e-05,2]
[419053639,1774814587954,-4184.97802301,9.513e-05,2]
[419053640,1774814587975,-10000.0,9.514e-05,2]
[419053641,1774814587997,-2500.0,9.514e-05,2]
[419053642,1774814588018,-253.0,9.514e-05,2]
[419053643,1774814588041,-1720.67,9.545e-05,2]
[419053644,1774814588061,-150.0,9.545e-05,2]
[419053645,1774814588083,-1200.0,9.56e-05,2]
[419053646,1774814588104,-150.0,9.592e-05,2]
[419053647,1774814588125,-167.63692162,9.593e-05,2]
[419053648,1774814588152,-500.25383728,9.593e-05,2]
[419053649,1774814588172,-163.63015478,9.593e-05,2]
[419053650,1774814588191,-500.0,9.593e-05,2]
[419053651,1774814588211,-500.0,9.593e-05,2]
[419053652,1774814588231,-500.0,9.593e-05,2]
[419053653,1774814588251,-500.0,9.593e-05,2]
[419053654,1774814588273,-900.0,9.6e-05,3]
[419053655,1774814588293,-153.659202,9.611e-05,2]
[419053656,1774814588314,-500.0,9.613e-05,2]
[419053657,1774814588340,-403.25515759,9.613e-05,2]
[419053658,1774814588360,-500.0,9.613e-05,2]
[419053659,1774814588380,-500.0,9.613e-05,2]
[419053660,1774814588401,-500.0,9.613e-05,2]